{"text_format":"3","workbook":"xlsx","n_sheets":2,"sheets":["งบประมาณโดยสรุป","รายละเอียดงบประมาณ"],"not_rendered":{"images":1,"defined_names":1},"read":"whole","date_system":"1900"}

{"sheet":"งบประมาณโดยสรุป","index":0,"n_rows":28,"n_cols":7,"rows_kept":28}
[{"$nulls":6}," "]
[]
[null,"งบประมาณงานแต่งงานทั้งหมด",{"v":20000,"d":"฿20,000"}]
[]
[null,"รายการค่าใช้จ่าย","การจัดสรรค่าใช้จ่าย \n%","งบประมาณทจัดสรรแล้ว","โดยประมาณ \nค่าใช้จ่าย","ตามจริง \nค่าใช้จ่าย"]
[null,"แผนกต้อนรับ",{"v":0.5,"d":"50%"},{"$f":"งบประมาณงานแต่งงานทั้งหมด*งบประมาณโดยสรุป!$C6","v":{"v":10000,"d":"฿10,000"}},{"$f":"ตาราง_แผนกต้อนรับ[[#Totals],[ค่าใช้จ่ายโดยประมาณ]]","v":{"v":0,"d":"฿0"}},{"$f":"ตาราง_แผนกต้อนรับ[[#Totals],[ค่าใช้จ่ายจริง]]","v":{"v":0,"d":"฿0"}}]
[null,"เครื่องแต่งกาย",{"v":0.1,"d":"10%"},{"$f":"งบประมาณงานแต่งงานทั้งหมด*งบประมาณโดยสรุป!$C7","v":{"v":2000,"d":"฿2,000"}},{"$f":"ตาราง_เครื่องแต่งกาย[[#Totals],[ค่าใช้จ่ายโดยประมาณ]]","v":{"v":0,"d":"฿0"}},{"$f":"ตาราง_เครื่องแต่งกาย[[#Totals],[ค่าใช้จ่ายจริง]]","v":{"v":0,"d":"฿0"}}]
[null,"ดอกไม้และการตกแต่ง",{"v":0.1,"d":"10%"},{"$f":"งบประมาณงานแต่งงานทั้งหมด*งบประมาณโดยสรุป!$C8","v":{"v":2000,"d":"฿2,000"}},{"$f":"ตาราง_ดอกไม้และการตกแต่ง[[#Totals],[ค่าใช้จ่ายโดยประมาณ]]","v":{"v":0,"d":"฿0"}},{"$f":"ตาราง_ดอกไม้และการตกแต่ง[[#Totals],[ค่าใช้จ่ายจริง]]","v":{"v":0,"d":"฿0"}}]
[null,"ดนตรี",{"v":0.1,"d":"10%"},{"$f":"งบประมาณงานแต่งงานทั้งหมด*งบประมาณโดยสรุป!$C9","v":{"v":2000,"d":"฿2,000"}},{"$f":"ตาราง_ดนตรี[[#Totals],[ค่าใช้จ่ายโดยประมาณ]]","v":{"v":0,"d":"฿0"}},{"$f":"ตาราง_ดนตรี[[#Totals],[ค่าใช้จ่ายจริง]]","v":{"v":0,"d":"฿0"}}]
[null,"รูปถ่ายและวิดีโอ",{"v":0.1,"d":"10%"},{"$f":"งบประมาณงานแต่งงานทั้งหมด*งบประมาณโดยสรุป!$C10","v":{"v":2000,"d":"฿2,000"}},{"$f":"ตาราง_รูปถ่ายและวิดีโอ[[#Totals],[ค่าใช้จ่ายโดยประมาณ]]","v":{"v":0,"d":"฿0"}},{"$f":"ตาราง_รูปถ่ายและวิดีโอ[[#Totals],[ค่าใช้จ่ายจริง]]","v":{"v":0,"d":"฿0"}}]
[null,"ของชำร่วยและของขวัญ",{"v":0.03,"d":"3%"},{"$f":"งบประมาณงานแต่งงานทั้งหมด*งบประมาณโดยสรุป!$C11","v":{"v":600,"d":"฿600"}},{"$f":"ตาราง_ของชำร่วยและของขวัญ[[#Totals],[ค่าใช้จ่ายโดยประมาณ]]","v":{"v":0,"d":"฿0"}},{"$f":"ตาราง_ของชำร่วยและของขวัญ[[#Totals],[ค่าใช้จ่ายจริง]]","v":{"v":0,"d":"฿0"}}]
[null,"งานพิธี",{"v":0.02,"d":"2%"},{"$f":"งบประมาณงานแต่งงานทั้งหมด*งบประมาณโดยสรุป!$C12","v":{"v":400,"d":"฿400"}},{"$f":"ตาราง_งานพิธี[[#Totals],[ค่าใช้จ่ายโดยประมาณ]]","v":{"v":0,"d":"฿0"}},{"$f":"ตาราง_งานพิธี[[#Totals],[ค่าใช้จ่ายจริง]]","v":{"v":0,"d":"฿0"}}]
[null,"เครื่องเขียน",{"v":0.02,"d":"2%"},{"$f":"งบประมาณงานแต่งงานทั้งหมด*งบประมาณโดยสรุป!$C13","v":{"v":400,"d":"฿400"}},{"$f":"ตาราง_เครื่องเขียน[[#Totals],[ค่าใช้จ่ายโดยประมาณ]]","v":{"v":0,"d":"฿0"}},{"$f":"ตาราง_เครื่องเขียน[[#Totals],[ค่าใช้จ่ายจริง]]","v":{"v":0,"d":"฿0"}}]
[null,"แหวนแต่งงาน",{"v":0.02,"d":"2%"},{"$f":"งบประมาณงานแต่งงานทั้งหมด*งบประมาณโดยสรุป!$C14","v":{"v":400,"d":"฿400"}},{"$f":"ตาราง_แหวนแต่งงาน[[#Totals],[ค่าใช้จ่ายโดยประมาณ]]","v":{"v":0,"d":"฿0"}},{"$f":"ตาราง_แหวนแต่งงาน[[#Totals],[ค่าใช้จ่ายจริง]]","v":{"v":0,"d":"฿0"}}]
[null,"การเดินทาง",{"v":0.01,"d":"1%"},{"$f":"งบประมาณงานแต่งงานทั้งหมด*งบประมาณโดยสรุป!$C15","v":{"v":200,"d":"฿200"}},{"$f":"ตาราง_การเดินทาง[[#Totals],[ค่าใช้จ่ายโดยประมาณ]]","v":{"v":0,"d":"฿0"}},{"$f":"ตาราง_การเดินทาง[[#Totals],[ค่าใช้จ่ายจริง]]","v":{"v":0,"d":"฿0"}}]
[null,"ผลรวม",{"$f":"SUM(C6:C15)","v":{"v":1,"d":"100%"}},{"$f":"SUM(D6:D15)","v":{"v":20000,"d":"฿20,000"}},{"v":0,"d":"฿0"},{"v":0,"d":"฿0"}]
[]
[null,"เงินสนับสนุน"]
[null,"แหล่งทุน","เงินสนับสนุน"]
[null,"เงินออม",{"v":10000,"d":"฿10,000"}]
[null,"แม่ & พ่อของบ่าวสาว1",{"v":4000,"d":"฿4,000"}]
[null,"ปู่ย่าตายายของบ่าวสาว1",{"v":2000,"d":"฿2,000"}]
[null,"แม่ & พ่อของบ่าวสาว2",{"v":4000,"d":"฿4,000"}]
[null,"ปู่ย่าตายายของบ่าวสาว2",{"v":4000,"d":"฿4,000"}]
[null,"เงินสนับสนุนอื่นๆ",{"v":2000,"d":"฿2,000"}]
[null,"ผลรวม",{"$f":"SUBTOTAL(109,ตาราง_เงินสนับสนุน[เงินสนับสนุน])","v":{"v":26000,"d":"฿26,000"}}]
[]
[null,{"$f":"IF(ตาราง_เงินสนับสนุน[[#Totals],[เงินสนับสนุน]]<งบประมาณงานแต่งงานทั้งหมด,\"ความแตกต่างในการชดเชย\",\"เงินทุนพิเศษที่มีอยู่\")","v":"เงินทุนพิเศษที่มีอยู่"},{"$f":"IF(ตาราง_เงินสนับสนุน[[#Totals],[เงินสนับสนุน]]<งบประมาณงานแต่งงานทั้งหมด,งบประมาณงานแต่งงานทั้งหมด-ตาราง_เงินสนับสนุน[[#Totals],[เงินสนับสนุน]],ตาราง_เงินสนับสนุน[[#Totals],[เงินสนับสนุน]]-งบประมาณงานแต่งงานทั้งหมด)","v":{"v":6000,"d":"฿6,000"}}]

{"sheet":"รายละเอียดงบประมาณ","index":1,"n_rows":80,"n_cols":4,"rows_kept":80}
[]
[null,"แผนกต้อนรับ","ค่าใช้จ่ายโดยประมาณ","ค่าใช้จ่ายจริง"]
[null,"สถานที่และค่าเช่า"]
[null,"อาหารและบริการ"]
[null,"เครื่องดื่ม"]
[null,"เค้ก"]
[null,"ค่าธรรมเนียมเบ็ดเตล็ด"]
[null,"ผลรวม",{"$f":"SUBTOTAL(109,ตาราง_แผนกต้อนรับ[ค่าใช้จ่ายโดยประมาณ])","v":{"v":0,"d":"฿0.00"}},{"$f":"SUBTOTAL(109,ตาราง_แผนกต้อนรับ[ค่าใช้จ่ายจริง])","v":{"v":0,"d":"฿0.00"}}]
[]
[null,"เครื่องแต่งกาย","ค่าใช้จ่ายโดยประมาณ","ค่าใช้จ่ายจริง"]
[null,"ทักซ์, สูท, และ/หรือชุดเดรส"]
[null,"แก้ชุด"]
[null,"เครื่องประดับผมและผ้าคลุมหน้า"]
[null,"เครื่องประดับ"]
[null,"แต่งหน้าทำผม"]
[null,"ค่าธรรมเนียมเบ็ดเตล็ด"]
[null,"ผลรวม",{"$f":"SUBTOTAL(109,ตาราง_เครื่องแต่งกาย[ค่าใช้จ่ายโดยประมาณ])","v":{"v":0,"d":"฿0.00"}},{"$f":"SUBTOTAL(109,ตาราง_เครื่องแต่งกาย[ค่าใช้จ่ายจริง])","v":{"v":0,"d":"฿0.00"}}]
[]
[null,"ดอกไม้และการตกแต่ง","ค่าใช้จ่ายโดยประมาณ","ค่าใช้จ่ายจริง"]
[null,"การจัดเตรียมดอกไม้สำหรับพิธี"]
[null,"ดอกไม้และกระเช้าของเด็กผู้หญิง"]
[null,"หมอนแหวน"]
[null,"ช่อดอกไม้"]
[null,"ดอกไม้ติดปกเสื้อสุภาพบุรุษ"]
[null,"ช่อดอกไม้กลัดหน้าอกสุภาพสตรี"]
[null,"การตกแต่งแผนกต้อนรับ"]
[null,"โคมไฟ"]
[null,"ค่าธรรมเนียมเบ็ดเตล็ด"]
[null,"ผลรวม",{"$f":"SUBTOTAL(109,ตาราง_ดอกไม้และการตกแต่ง[ค่าใช้จ่ายโดยประมาณ])","v":{"v":0,"d":"฿0.00"}},{"$f":"SUBTOTAL(109,ตาราง_ดอกไม้และการตกแต่ง[ค่าใช้จ่ายจริง])","v":{"v":0,"d":"฿0.00"}}]
[]
[null,"ดนตรี","ค่าใช้จ่ายโดยประมาณ","ค่าใช้จ่ายจริง"]
[null,"นักดนตรีสำหรับพิธีการ"]
[null,"นักดนตรีสำหรับช่วงค๊อกเทล"]
[null,"วงเปิด ดีเจ หรือความบันเทิงอื่น"]
[null,"ระบบเสียงหรือค่าเช่าพื้นที่เต้นรำ"]
[null,"ค่าธรรมเนียมเบ็ดเตล็ด"]
[null,"ผลรวม",{"$f":"SUBTOTAL(109,ตาราง_ดนตรี[ค่าใช้จ่ายโดยประมาณ])","v":{"v":0,"d":"฿0.00"}},{"$f":"SUBTOTAL(109,ตาราง_ดนตรี[ค่าใช้จ่ายจริง])","v":{"v":0,"d":"฿0.00"}}]
[]
[null,"รูปถ่ายและวิดีโอ","ค่าใช้จ่ายโดยประมาณ","ค่าใช้จ่ายจริง"]
[null,"การถ่ายภาพ"]
[null,"การถ่ายวิดีโอ"]
[null,"สิ่งพิมพ์และอัลบั้มเพิ่มเติม"]
[null,"ค่าธรรมเนียมเบ็ดเตล็ด"]
[null,"ผลรวม",{"$f":"SUBTOTAL(109,ตาราง_รูปถ่ายและวิดีโอ[ค่าใช้จ่ายโดยประมาณ])","v":{"v":0,"d":"฿0.00"}},{"$f":"SUBTOTAL(109,ตาราง_รูปถ่ายและวิดีโอ[ค่าใช้จ่ายจริง])","v":{"v":0,"d":"฿0.00"}}]
[]
[null,"ของชำร่วยและของขวัญ","ค่าใช้จ่ายโดยประมาณ","ค่าใช้จ่ายจริง"]
[null,"ของขวัญสำหรับต้อนรับ"]
[null,"ของขวัญช่วงปาร์ตี้"]
[null,"ค่าธรรมเนียมเบ็ดเตล็ด"]
[null,"ผลรวม",{"$f":"SUBTOTAL(109,ตาราง_ของชำร่วยและของขวัญ[ค่าใช้จ่ายโดยประมาณ])","v":{"v":0,"d":"฿0.00"}},{"$f":"SUBTOTAL(109,ตาราง_ของชำร่วยและของขวัญ[ค่าใช้จ่ายจริง])","v":{"v":0,"d":"฿0.00"}}]
[]
[null,"งานพิธี","ค่าใช้จ่ายโดยประมาณ","ค่าใช้จ่ายจริง"]
[null,"ค่าธรรมเนียมสถานที่"]
[null,"ค่าธรรมเนียมผู้ประกอบพิธี หรือบริจาคให้โบสถ์"]
[null,"ค่าธรรมเนียมเบ็ดเตล็ด"]
[null,"ผลรวม",{"$f":"SUBTOTAL(109,ตาราง_งานพิธี[ค่าใช้จ่ายโดยประมาณ])","v":{"v":0,"d":"฿0.00"}},{"$f":"SUBTOTAL(109,ตาราง_งานพิธี[ค่าใช้จ่ายจริง])","v":{"v":0,"d":"฿0.00"}}]
[]
[null,"เครื่องเขียน","ค่าใช้จ่ายโดยประมาณ","ค่าใช้จ่ายจริง"]
[null,"การ์ดแจ้งวันงาน"]
[null,"การเชิญและ RSVPs"]
[null,"โปรแกรม"]
[null,"การ์ดที่นั่งและสถานที่"]
[null,"การ์ดเมนู"]
[null,"การ์ดขอบคุณ"]
[null,"ค่าไปรษณีย์"]
[null,"ค่าธรรมเนียมเบ็ดเตล็ด"]
[null,"ผลรวม",{"$f":"SUBTOTAL(109,ตาราง_เครื่องเขียน[ค่าใช้จ่ายโดยประมาณ])","v":{"v":0,"d":"฿0.00"}},{"$f":"SUBTOTAL(109,ตาราง_เครื่องเขียน[ค่าใช้จ่ายจริง])","v":{"v":0,"d":"฿0.00"}}]
[]
[null,"แหวนแต่งงาน","ค่าใช้จ่ายโดยประมาณ","ค่าใช้จ่ายจริง"]
[null,"แหวนแต่งงาน"]
[null,"เครื่องประดับแหวน"]
[null,"ผลรวม",{"$f":"SUBTOTAL(109,ตาราง_แหวนแต่งงาน[ค่าใช้จ่ายโดยประมาณ])","v":{"v":0,"d":"฿0.00"}},{"$f":"SUBTOTAL(109,ตาราง_แหวนแต่งงาน[ค่าใช้จ่ายจริง])","v":{"v":0,"d":"฿0.00"}}]
[]
[null,"การเดินทาง","ค่าใช้จ่ายโดยประมาณ","ค่าใช้จ่ายจริง"]
[null,"เช่ารถยนต์บ่าวสาว"]
[null,"เช่ารถยนต์สำหรับแขก"]
[null,"การเดินทางสำหรับแขกต่างเมือง"]
[null,"บริการนำรถไปจอด"]
[null,"ค่าธรรมเนียมเบ็ดเตล็ด"]
[null,"ผลรวม",{"$f":"SUBTOTAL(109,ตาราง_การเดินทาง[ค่าใช้จ่ายโดยประมาณ])","v":{"v":0,"d":"฿0.00"}},{"$f":"SUBTOTAL(109,ตาราง_การเดินทาง[ค่าใช้จ่ายจริง])","v":{"v":0,"d":"฿0.00"}}]